bitfinex-derivatives/quotes_ETHF0:USTF0_20250116
["timestamp","ask_amount","ask_price","bid_price","bid_amount"]
[1737021156495,0.5993,3337.8,3337.7,2.40961343]
[1737021158595,0.5993,3337.8,3337.7,3.00893343]
[1737021158895,0.5993,3337.8,3337.7,2.40961343]
[1737021160396,0.59933,3337.6,3337.5,3.2078]
[1737021161097,0.59933,3337.6,3337.5,3.80715]
[1737021161293,0.59933,3337.6,3337.5,3.2078]
[1737021161997,1.49825,3337.9,3337.0,4.4667]
[1737021161998,4.70605,3337.9,3337.0,4.4667]
[1737021162296,0.59941,3337.2,3337.1,2.40961343]
[1737021164999,3.2078,3337.4,3337.1,2.40961343]
[1737021165205,0.59932,3337.8,3337.7,0.5993]
[1737021165399,0.59932,3337.8,3337.7,3.00891343]
[1737021166508,0.59929,3338.0,3337.9,0.59926]
[1737021166807,0.59925,3338.2,3338.1,0.59923]
[1737021167004,0.59925,3338.2,3338.1,3.00884343]
[1737021167203,2.84986,3338.5,3338.1,3.00884343]
[1737021167204,1.3519,3338.5,3338.1,2.40961343]
[1737021167503,1.3519,3338.5,3338.3,0.59919]
[1737021167504,0.59921,3338.4,3338.3,0.59919]
[1737021170509,4.70557,3338.9,3338.2,5.8441]
[1737021170707,0.59917,3338.6,3338.5,3.00877343]
[1737021171706,0.59915,3338.7,3338.6,0.59915]
[1737021171901,0.59915,3338.7,3338.5,3.00877343]
[1737021172207,0.59915,3338.6,3338.5,3.00877343]
[1737021174511,2.7044,3339.0,3338.4,0.59918]
[1737021174713,0.59918,3338.5,3338.4,0.59918]
[1737021176405,0.59914,3338.7,3338.3,2.40961343]
[1737021176709,1.3529,3338.8,3338.3,2.40961343]
[1737021177209,0.59918,3338.5,3338.4,0.59918]
[1737021177510,0.59914,3338.7,3338.4,0.59919]
[1737021177711,1.3529,3338.8,3338.4,0.59919]
[1737021177712,0.59919,3338.5,3338.4,0.59919]
[1737021178906,1.3529,3338.8,3338.3,2.40961343]
[1737021179108,0.59918,3338.5,3338.4,0.59918]
[1737021179410,1.3529,3338.8,3338.3,2.40961343]
[1737021179610,0.59917,3338.6,3338.5,0.59916]
[1737021181108,3.2078,3338.9,3338.5,0.59917]
[1737021181308,0.59915,3338.6,3338.5,0.59917]
[1737021181509,0.59917,3338.5,3338.4,1.98528]
[1737021181811,0.59917,3338.5,3338.4,0.59918]
[1737021182315,0.59919,3338.5,3338.4,0.59918]
[1737021182504,2.81488,3338.7,3338.2,3.2078]
[1737021182709,0.59921,3338.3,3338.2,3.2078]
[1737021182911,0.59924,3338.1,3337.8,2.5839]
[1737021183111,0.5993,3337.8,3337.7,2.40961343]
[1737021183908,0.5993,3337.8,3337.7,3.00893343]
[1737021185816,0.59929,3337.9,3337.8,0.59928]
[1737021186207,2.645,3338.2,3338.1,0.59924]
[1737021186405,4.7056,3338.9,3338.5,0.59916]
[1737021186617,2.648,3338.8,3338.5,0.59916]
[1737021186825,0.59917,3338.6,3338.5,0.59916]
[1737021188115,2.648,3338.8,3338.1,2.40961343]
[1737021188315,0.59921,3338.4,3338.3,0.59918]
[1737021188619,0.59923,3338.3,3338.2,0.59921]
[1737021189023,1.49785,3338.7,3338.1,2.40961343]
[1737021189323,0.59916,3338.6,3338.5,0.59915]
[1737021189512,3.2078,3339.3,3338.4,2.40961343]
[1737021189719,0.59905,3339.2,3339.1,2.40961343]
[1737021190021,0.59906,3339.1,3339.0,0.59908]
[1737021190218,2.5872,3339.2,3338.9,3.2078]
[1737021190415,0.59908,3339.0,3338.9,3.2078]
[1737021191224,0.5991,3338.9,3338.8,2.40961343]
[1737021191420,0.59915,3338.6,3338.5,8.87017343]
[1737021192125,0.59915,3338.6,3338.5,2.40961343]
[1737021192925,0.59915,3338.6,3338.5,3.00878343]
[1737021193426,0.59915,3338.7,3338.6,0.59914]
[1737021193623,3.2078,3339.1,3338.5,3.74471343]
[1737021193824,0.59908,3339.0,3338.9,2.40961343]
[1737021194323,0.59908,3339.0,3338.9,3.00871343]
[1737021194717,0.59908,3339.0,3338.9,2.40961343]
[1737021197822,0.59908,3339.1,3338.9,2.40961343]
[1737021198124,0.59908,3339.0,3338.9,3.00870343]
[1737021198439,0.59908,3339.0,3338.9,3.00871343]
[1737021198629,0.59908,3339.0,3338.9,0.5991]
[1737021199120,1.3718,3339.3,3338.9,0.5991]
[1737021199329,1.3718,3339.3,3339.1,3.00866343]
[1737021199330,0.59907,3339.2,3339.1,3.00866343]
[1737021199719,0.59907,3339.2,3339.1,2.40961343]
[1737021200230,0.5991,3338.9,3338.8,3.00873343]
[1737021201429,0.5991,3338.9,3338.8,2.40961343]
[1737021201628,0.5991,3338.9,3338.8,3.00873343]
[1737021201830,0.5991,3338.9,3338.8,2.40961343]
[1737021202733,0.5991,3338.9,3338.8,3.00873343]
[1737021203027,0.5991,3338.9,3338.8,2.40961343]
[1737021203331,0.5991,3338.9,3338.8,3.00873343]
[1737021204028,1.3867,3339.2,3338.8,2.40961343]
[1737021204323,0.5991,3338.9,3338.8,3.00871343]
[1737021205128,0.5991,3338.9,3338.8,0.5991]
[1737021205831,0.5991,3338.9,3338.8,3.8069]
[1737021207430,0.5991,3338.9,3338.8,3.2078]
[1737021207934,0.5991,3338.9,3338.8,3.80692]
[1737021209631,0.5991,3338.9,3338.8,3.2078]
[1737021209933,0.5991,3338.9,3338.8,3.80692]
[1737021213040,0.59912,3338.8,3338.7,1.90143]
[1737021213337,0.59923,3338.2,3338.1,4.66425661]
[1737021214243,1.2509,3338.6,3338.0,3.2078]
[1737021214438,0.59918,3338.5,3338.2,2.40961343]
[1737021214633,1.2509,3338.6,3338.0,3.2078]
[1737021214936,1.49801,3338.4,3338.0,3.2078]
[1737021215135,0.59924,3338.1,3338.0,3.2078]
[1737021215345,0.59932,3337.7,3337.6,4.66425661]
[1737021215541,0.59932,3337.7,3337.6,4.75794759]
[1737021215738,0.59932,3337.7,3337.6,4.66425661]
[1737021216643,0.59935,3337.5,3337.4,3.2078]
[1737021217042,0.59935,3337.5,3336.9,6.21686343]
[1737021217341,1.49848,3337.3,3336.9,5.61741343]
[1737021217639,0.59944,3337.0,3336.9,5.61741343]
[1737021218039,0.59944,3337.0,3336.9,3.2078]
[1737021218547,0.5995,3336.7,3336.6,3.47922262]
[1737021218942,0.5995,3336.7,3336.6,2.87971262]
[1737021219245,1.49857,3337.1,3336.6,2.40961343]
[1737021219442,0.59949,3336.8,3336.6,3.00912343]
[1737021219642,2.6251,3337.2,3336.6,2.40961343]
[1737021219844,1.2986,3337.2,3336.8,0.59946]
[1737021220043,1.2986,3337.2,3336.6,2.40961343]
[1737021220450,0.59947,3336.9,3336.7,0.59948]
[1737021220950,1.2986,3337.2,3336.6,2.40961343]
[1737021221249,0.59948,3336.8,3336.6,3.00912343]
[1737021221453,1.2986,3337.2,3336.6,3.00912343]
[1737021221655,0.59949,3336.8,3336.6,3.00912343]
[1737021221858,0.59948,3336.8,3336.6,2.40961343]
[1737021222856,1.2986,3337.2,3336.7,1.9427]
[1737021223151,0.59947,3336.9,3336.8,1.3218]
[1737021223551,0.5995,3336.7,3336.6,3.00912343]
[1737021223859,1.2986,3337.2,3336.6,2.40961343]
[1737021224151,1.2986,3337.2,3336.8,0.59947]
[1737021224458,0.59946,3336.9,3336.8,0.59947]
[1737021224858,0.59946,3337.0,3336.8,0.59947]
[1737021225058,1.2986,3337.2,3336.8,0.59947]
[1737021225260,0.59946,3336.9,3336.8,0.59947]
[1737021225752,0.59945,3337.0,3336.8,0.59947]
[1737021225959,0.59944,3337.0,3336.9,1.2761]
[1737021226258,0.59944,3337.0,3336.9,3.68571343]
[1737021227759,0.59944,3337.0,3336.9,2.40961343]
[1737021228263,0.59944,3337.0,3336.7,1.3806]
[1737021228264,1.2986,3337.2,3336.7,1.3806]
[1737021228450,0.59948,3336.8,3336.7,1.3806]
[1737021228655,0.59951,3336.6,3336.5,3.2078]
[1737021229251,2.7022,3336.9,3336.5,3.2078]
[1737021229456,0.5995,3336.7,3336.6,3.00912343]
[1737021229856,0.5995,3336.7,3336.6,2.40961343]
[1737021230263,0.5995,3336.7,3336.6,3.00912343]
[1737021230559,0.5995,3336.7,3336.6,2.40961343]
[1737021231762,0.59951,3336.6,3336.5,3.2078]
[1737021231962,1.94471,3336.6,3336.5,3.2078]
[1737021233460,1.94471,3336.6,3336.5,3.80733]
[1737021235960,0.59951,3336.6,3336.5,3.80733]
[1737021238164,0.59951,3336.6,3336.5,3.2078]
[1737021238868,7.1842,3336.9,3336.1,3.2078]
[1737021239064,0.59958,3336.2,3336.1,3.8074]
[1737021243173,0.59958,3336.2,3336.1,3.90112928]
[1737021243372,0.59958,3336.2,3336.1,3.30152928]
[1737021244773,0.59958,3336.2,3336.1,3.90112928]
[1737021246673,0.59958,3336.2,3336.1,3.30152928]
[1737021247275,1.2835,3336.4,3336.1,3.30152928]
[1737021247477,1.2834,3336.8,3336.2,2.50334271]
[1737021247677,0.59947,3336.9,3336.8,0.59948]
[1737021247872,0.59947,3336.9,3336.8,0.09372928]
[1737021248781,1.88287,3336.9,3336.8,0.09372928]
[1737021249079,1.2834,3336.9,3336.5,3.2078]
[1737021249271,1.2834,3336.9,3336.6,0.09372007]
[1737021249473,1.88287,3336.9,3336.8,0.59948]
[1737021249670,1.88287,3336.9,3336.8,0.09372007]
[1737021249879,0.59951,3336.6,3336.5,3.2078]
[1737021250078,0.59951,3336.6,3336.5,3.30152139]
[1737021250279,0.59951,3336.6,3336.5,0.09372139]
[1737021251679,1.49873,3336.8,3336.5,0.09372288]
[1737021251976,0.5995,3336.7,3336.6,0.09372288]
[1737021253981,2.7821,3336.9,3336.3,0.59956]
[1737021254177,1.49878,3336.7,3336.4,0.09372482]
[1737021254383,1.98911,3336.6,3336.5,0.09372524]
[1737021254582,1.98911,3336.6,3335.6,3.2078]
[1737021254583,4.5974,3336.6,3335.6,3.2078]
[1737021254886,0.59967,3335.9,3335.8,0.59963]
[1737021255088,0.59967,3335.9,3335.8,0.69336513]
[1737021255283,0.59967,3335.9,3335.8,0.09373513]
[1737021255478,0.59967,3335.9,3335.8,0.69339513]
[1737021256083,0.59967,3335.9,3335.8,0.09373513]
[1737021256285,0.59967,3335.9,3335.8,0.69339513]
[1737021256583,0.59967,3335.9,3335.8,0.09373513]
[1737021257487,0.59964,3335.9,3335.8,0.09374337]
[1737021258190,0.59964,3335.9,3335.8,0.69338337]
[1737021258391,1.83733,3336.0,3335.9,0.59964]
[1737021258591,1.83733,3336.0,3335.9,0.09374337]
[1737021260088,0.59976,3335.2,3335.1,8.47182661]
[1737021260393,0.59976,3335.2,3335.1,7.96581271]
[1737021260580,0.59976,3335.2,3335.1,7.87205661]
[1737021260984,3.8476,3335.4,3334.8,3.2855755]
[1737021261184,0.59984,3334.8,3334.7,3.2078]
[1737021262799,3.8476,3335.4,3334.7,3.2078]
[1737021263090,0.59981,3335.0,3334.9,0.59981]
[1737021263290,6.25721343,3335.4,3334.7,3.2078]
[1737021263484,0.59984,3334.8,3334.7,3.2078]
[1737021263882,0.59993,3334.3,3334.2,3.2078]
[1737021264187,1.2716,3334.7,3334.2,3.2078]
[1737021264485,0.5999,3334.5,3334.3,3.17762]
[1737021264692,1.3664,3334.8,3334.3,4.98731343]
[1737021264887,0.59986,3334.7,3334.5,0.59988]
[1737021265087,0.59986,3334.7,3334.3,4.98731343]
[1737021265281,0.59986,3334.7,3334.6,0.59987]
[1737021265484,0.59986,3334.7,3334.3,4.98731343]
[1737021265485,0.59988,3334.6,3334.5,0.59988]
[1737021265687,0.59987,3334.7,3334.5,0.59988]
[1737021265885,1.3664,3334.8,3334.4,0.5999]
[1737021266092,0.59991,3334.5,3334.3,2.5777]
[1737021266296,0.59991,3334.5,3334.3,3.17762]
[1737021266694,0.59991,3334.4,3334.3,2.5777]
[1737021266996,1.3664,3334.8,3334.2,3.2078]
[1737021267195,1.95123,3334.3,3334.2,3.2078]
[1737021268097,1.3513,3334.3,3333.7,6.86273343]
[1737021268294,1.3069,3334.2,3333.7,4.45313]
[1737021268499,0.60002,3333.8,3333.7,4.45313]
[1737021268700,0.60002,3333.8,3333.7,3.8531]
[1737021269005,0.60002,3333.8,3333.7,0.60003]
[1737021269296,0.60002,3333.8,3333.7,2.7153]
[1737021269712,1.3069,3334.2,3333.7,5.12491343]
[1737021269997,0.59997,3334.1,3333.9,0.59999]
[1737021270199,1.3069,3334.2,3333.7,5.12491343]
[1737021270401,0.59998,3334.1,3333.9,0.59998]
[1737021270696,0.59998,3334.1,3333.7,5.12491343]
[1737021270894,0.59997,3334.1,3333.9,0.6]
[1737021271290,1.3513,3334.3,3334.0,3.2078]
[1737021271490,1.95123,3334.3,3334.1,0.59995]
[1737021271690,1.3513,3334.3,3334.1,0.59995]
[1737021271885,1.95124,3334.3,3334.1,0.59995]
[1737021272099,1.95124,3334.3,3334.0,3.2078]
[1737021272400,0.59987,3334.7,3334.5,0.59987]
[1737021272598,0.59987,3334.7,3334.6,1.2179]
[1737021273091,0.59987,3334.7,3334.6,1.81777]
[1737021273293,0.59987,3334.7,3334.6,1.2179]
[1737021274596,2.5848,3335.0,3334.4,2.7001]
[1737021274597,0.59989,3334.5,3334.4,2.7001]
[1737021274791,1.4996,3334.8,3334.0,3.2078]
[1737021274998,0.59995,3334.2,3334.1,0.59995]
[1737021275595,1.3025,3334.4,3334.0,3.2078]
[1737021275795,1.3025,3334.4,3334.2,0.59993]
[1737021275796,0.59994,3334.3,3334.2,0.59993]
[1737021276404,1.3025,3334.4,3334.3,0.59993]
[1737021276605,0.5999,3334.5,3334.4,0.59991]
[1737021276908,0.59992,3334.4,3334.3,0.59991]
[1737021277905,0.59993,3334.3,3334.2,0.59994]
[1737021278204,2.80322,3334.8,3334.1,1.2475]
[1737021278407,0.59992,3334.4,3334.3,0.59991]
[1737021280204,2.80322,3334.8,3334.4,0.5999]
[1737021280205,0.5999,3334.5,3334.4,0.5999]
[1737021280901,1.3036,3334.8,3334.1,1.2475]
[1737021281208,0.59992,3334.4,3334.3,0.59991]
[1737021282203,1.3036,3334.8,3334.1,1.2475]
[1737021282409,0.59994,3334.2,3334.1,1.84745]
[1737021282903,0.59994,3334.2,3334.1,1.2475]
[1737021283105,1.49977,3334.5,3334.0,3.2078]
[1737021283409,0.59996,3334.1,3334.0,3.80778]
[1737021283805,0.59996,3334.1,3334.0,3.2078]
[1737021284714,2.4926,3334.4,3334.0,3.2078]
[1737021285005,1.2627,3334.4,3334.0,3.2078]
[1737021285306,1.2627,3334.4,3334.2,0.59993]
[1737021285307,0.59994,3334.3,3334.2,0.59993]
[1737021285903,0.59996,3334.2,3334.1,0.59995]
[1737021286407,1.2627,3334.4,3334.0,5.61741343]
[1737021286611,0.59996,3334.1,3334.0,5.61741343]
[1737021286811,0.59996,3334.1,3334.0,3.2078]
[1737021288717,0.59999,3334.0,3333.9,0.59998]
[1737021289408,1.2627,3334.4,3333.7,2.40961343]
[1737021289606,1.2627,3334.4,3334.0,5.61741343]
[1737021289813,0.59994,3334.3,3334.2,0.59993]
[1737021292112,1.86262,3334.4,3334.3,0.59993]
[1737021292513,0.59992,3334.4,3334.3,0.59993]
[1737021293018,0.5999,3334.5,3334.4,0.59989]
[1737021293212,0.59989,3334.6,3334.5,0.59988]
[1737021297513,0.59991,3334.5,3334.4,0.5999]
[1737021299813,2.5218,3334.7,3334.6,0.59987]
[1737021300509,1.2919,3334.7,3334.6,0.59987]
[1737021300807,3.12519,3335.1,3335.0,0.5998]
[1737021301003,1.89429,3335.1,3335.0,0.5998]
[1737021301214,0.59983,3334.9,3334.8,0.59984]
[1737021302516,1.2945,3335.1,3334.7,3.9726]
[1737021302715,0.5999,3334.5,3334.4,0.59991]
[1737021303016,0.59991,3334.4,3334.3,3.80771]
[1737021303313,1.88671,3334.4,3334.3,3.80771]
[1737021304217,1.88671,3334.4,3334.3,3.2078]
[1737021305808,1.2868,3334.4,3334.1,0.59996]
[1737021306015,1.90484,3334.3,3334.2,0.59994]
[1737021306313,1.3049,3334.3,3334.2,0.59994]
[1737021306511,1.2868,3334.4,3334.3,0.59993]
[1737021306909,1.88671,3334.4,3334.3,0.59993]
[1737021307115,1.2868,3334.4,3334.2,3.8242]
[1737021307315,0.59993,3334.3,3334.2,4.42413]
[1737021307811,0.59993,3334.3,3334.2,0.59993]
[1737021308013,0.59994,3334.2,3334.1,3.00956343]
[1737021308220,1.2868,3334.4,3334.3,0.59993]
[1737021308721,1.88671,3334.4,3334.3,0.59993]
[1737021309423,0.59994,3334.3,3334.2,0.59993]
[1737021309607,0.59994,3334.2,3334.1,3.00956343]
[1737021310713,0.59994,3334.3,3334.2,0.59994]
[1737021310919,0.59994,3334.2,3334.1,3.00956343]
[1737021311126,1.2868,3334.4,3334.1,2.40961343]
[1737021311416,1.88672,3334.4,3334.3,0.59993]
[1737021311626,1.2868,3334.4,3334.3,0.59993]
[1737021311815,1.2868,3334.4,3334.3,3.80773]
[1737021313022,1.88671,3334.4,3334.3,3.80773]
[1737021314321,1.2868,3334.4,3334.3,3.80773]
[1737021314619,1.88671,3334.4,3334.3,3.80773]
[1737021316516,1.2868,3334.4,3333.9,3.2078]
[1737021316717,0.59998,3334.0,3333.9,3.80778]
[1737021317220,0.59998,3334.0,3333.9,3.2078]
[1737021317824,1.2868,3334.4,3333.9,3.2078]
[1737021318016,0.59997,3334.1,3334.0,0.59996]
[1737021318217,1.2868,3334.4,3334.0,3.7851]
[1737021318516,0.59994,3334.3,3334.2,0.59993]
[1737021318715,1.2868,3334.4,3334.1,2.40961343]
[1737021319219,0.59995,3334.2,3334.1,0.59996]
[1737021319623,0.59994,3334.3,3334.2,0.59993]
[1737021319822,0.59996,3334.1,3334.0,4.38506]
[1737021320123,1.2868,3334.4,3334.3,0.59993]
[1737021320124,1.88673,3334.4,3334.3,0.59993]
[1737021321223,0.59993,3334.3,3334.2,3.80773]
[1737021322516,0.59993,3334.3,3334.2,3.2078]
[1737021325830,1.2868,3334.4,3334.2,3.2078]
[1737021326128,0.59989,3334.5,3334.4,0.59989]
[1737021326820,1.3049,3334.6,3334.5,0.59989]
[1737021327128,1.3146,3334.7,3334.5,0.59989]
[1737021327129,0.59984,3334.9,3334.8,0.59982]
[1737021329731,4.4951,3335.0,3334.5,1.256]
[1737021329926,0.59987,3334.6,3334.5,1.256]
[1737021330324,0.59993,3334.3,3334.2,8.47198661]
[1737021331027,0.59993,3334.3,3334.2,3.80773]
[1737021331428,4.01168,3334.7,3334.2,3.2078]
[1737021331627,0.59992,3334.4,3334.3,0.59991]
[1737021331829,1.88711,3335.0,3334.9,0.59982]
[1737021332034,1.2873,3335.0,3334.8,3.2078]
[1737021332233,0.59982,3334.9,3334.8,3.80762]
[1737021332634,0.59982,3334.9,3334.8,3.2078]
[1737021333134,0.59984,3334.8,3334.7,1.256]
[1737021333329,1.91184,3334.8,3334.7,1.256]
[1737021334533,1.312,3334.8,3334.4,3.2078]
[1737021334730,0.59989,3334.5,3334.4,3.2078]
[1737021335628,1.82969,3334.5,3334.4,3.2078]
[1737021337734,1.2298,3334.5,3334.1,3.66561343]
[1737021337931,0.59994,3334.3,3334.2,0.59994]
[1737021340733,1.2298,3334.5,3334.1,3.66561343]
[1737021340934,1.2612,3334.6,3334.5,0.59989]
[1737021341138,1.312,3334.8,3334.4,2.40961343]
[1737021341340,0.59986,3334.7,3334.6,0.59985]
[1737021341938,0.59989,3334.6,3334.5,0.59988]
[1737021343529,0.59998,3334.1,3334.0,0.59997]
[1737021343730,0.59998,3334.0,3333.9,3.80779]
[1737021343931,0.59998,3334.0,3333.9,3.2078]
[1737021346936,0.59998,3334.0,3333.9,3.8078]
[1737021347134,2.5302,3334.3,3333.9,3.2078]
[1737021347333,0.59998,3334.1,3334.0,0.59997]
[1737021347934,0.59997,3334.1,3334.0,0.59997]
[1737021348637,0.59998,3334.0,3333.9,3.80779]
[1737021349137,2.5302,3334.3,3333.9,3.2078]
[1737021349338,0.59997,3334.1,3334.0,0.59998]
[1737021349736,0.59995,3334.2,3334.1,0.59995]
[1737021351240,1.2692,3334.3,3334.0,1.2199]
[1737021351438,1.2692,3334.3,3334.2,0.59994]
[1737021352644,0.59995,3334.2,3334.1,0.59995]
[1737021352840,1.2692,3334.3,3333.9,3.2078]
[1737021353138,0.59998,3334.1,3334.0,0.59997]
[1737021356138,1.2692,3334.3,3333.9,3.2078]
[1737021356446,0.59998,3334.0,3333.9,3.8078]
[1737021357440,1.2692,3334.3,3333.9,3.2078]
[1737021357640,0.59998,3334.1,3334.0,0.59997]
[1737021358748,1.86913,3334.3,3334.2,0.59994]
[1737021361241,1.2692,3334.3,3334.2,0.59994]
[1737021362741,0.59996,3334.2,3334.1,0.59995]
[1737021362934,1.2692,3334.3,3334.0,1.3182]
[1737021363137,0.59998,3334.1,3334.0,0.59996]
[1737021365645,0.59996,3334.2,3334.1,0.59994]
[1737021366546,1.86913,3334.3,3334.2,0.59994]
[1737021366751,1.83862,3334.4,3334.3,0.59993]
[1737021367655,0.59987,3334.7,3334.6,0.59985]
[1737021367953,0.59988,3334.6,3334.5,0.59987]
[1737021368555,0.59988,3334.7,3334.6,0.59986]
[1737021369748,1.85506,3334.8,3334.7,0.59985]
[1737021370249,1.2552,3334.8,3334.7,0.59985]
[1737021372856,1.85504,3334.8,3334.7,0.59985]
[1737021374253,1.2552,3334.8,3334.4,1.255]
[1737021374449,0.59986,3334.7,3334.6,0.59986]
[1737021376551,0.59986,3334.7,3334.4,1.255]
[1737021376552,1.85505,3334.8,3334.7,0.59985]
[1737021378154,1.2552,3334.8,3334.7,0.59985]
[1737021378354,8.25606664,3335.5,3334.7,0.59985]
[1737021378355,7.07662855,3335.4,3334.7,2.40961343]
[1737021378658,7.07662855,3335.4,3335.3,3.00936343]
[1737021378859,7.07662855,3335.4,3335.3,4.26436343]
[1737021379251,7.07662855,3335.4,3335.3,1.85475]
[1737021379954,2.5609,3335.4,3335.3,1.85475]
[1737021380150,3.16063,3335.4,3335.3,1.85475]
[1737021380345,3.16063,3335.4,3335.3,1.255]
[1737021380547,0.59978,3335.2,3335.1,0.59977]
[1737021380752,0.59978,3335.2,3335.0,1.254]
[1737021380753,0.59975,3335.3,3335.2,0.59976]
[1737021381056,2.5609,3335.4,3335.1,0.59978]
[1737021381057,0.59978,3335.2,3335.1,0.59978]
[1737021381256,2.5609,3335.4,3334.7,5.61741343]
[1737021381453,1.335,3335.1,3335.0,0.59978]
[1737021383759,1.335,3335.1,3334.7,8.37103343]
[1737021383760,0.59981,3335.0,3334.9,0.59981]
[1737021383951,0.59983,3334.9,3334.8,0.59983]
[1737021384152,1.2195,3334.9,3334.8,0.59983]
[1737021384763,1.2195,3334.9,3334.7,0.59985]
[1737021384964,1.3515,3334.8,3334.7,0.59985]
[1737021385167,1.95134,3334.8,3334.7,0.59985]
[1737021385459,1.3515,3334.8,3334.6,0.59986]
[1737021385964,0.59985,3334.7,3334.6,0.59986]
[1737021386166,1.3515,3334.8,3334.4,1.254]
[1737021386463,0.59986,3334.7,3334.6,0.59987]
[1737021386665,1.95134,3334.8,3334.7,0.59985]
[1737021387364,1.3515,3334.8,3334.4,1.254]
[1737021387562,0.59986,3334.7,3334.6,0.59986]
[1737021388266,1.95134,3334.8,3334.7,0.59985]
[1737021388562,1.3515,3334.8,3334.7,0.59985]
[1737021388763,1.2195,3334.9,3334.8,0.59984]
[1737021390359,1.81932,3334.9,3334.8,0.59984]
[1737021390560,1.2195,3334.9,3334.8,0.59984]
[1737021390768,1.81932,3334.9,3334.8,0.59984]
[1737021393472,0.59982,3334.9,3334.8,0.59984]
[1737021396374,0.59985,3334.8,3334.7,0.59984]
[1737021396872,0.59985,3334.8,3334.6,1.254]
[1737021397077,1.84795,3334.7,3334.6,1.85386]
[1737021400688,1.84795,3334.7,3334.6,1.254]
[1737021401286,4.4559,3334.7,3334.4,1.254]
[1737021401586,0.59994,3334.3,3334.2,0.59994]
[1737021401784,0.59994,3334.3,3334.2,1.85394]
[1737021402188,0.59994,3334.3,3334.2,0.59994]
[1737021402383,4.07381,3334.6,3333.9,6.95121343]
[1737021402590,0.59997,3334.1,3334.0,0.59997]
[1737021402889,0.59997,3334.1,3334.0,1.85397]
[1737021405094,0.59996,3334.2,3334.1,0.59995]
[1737021405393,0.59996,3334.2,3334.0,1.254]
[1737021405394,1.49975,3334.5,3334.0,1.254]
[1737021405583,1.83406,3334.1,3334.0,1.85397]
[1737021405787,1.83406,3334.1,3334.0,0.59997]
[1737021406186,1.2341,3334.1,3334.0,0.59997]
[1737021407398,1.83406,3334.1,3334.0,0.59997]
[1737021407597,0.59996,3334.2,3334.1,0.59995]
[1737021414696,0.59998,3334.1,3334.0,0.59997]
[1737021415000,0.59999,3334.0,3333.9,0.59998]
[1737021415202,0.59999,3334.0,3333.9,0.6]
[1737021415403,0.60003,3333.8,3333.7,0.60003]
[1737021415604,0.60003,3333.8,3333.7,1.85403]
[1737021416307,0.60003,3333.8,3333.7,0.60003]
[1737021416698,1.9307,3333.9,3333.8,0.60002]
[1737021417100,1.3307,3333.9,3333.8,0.60002]
[1737021417305,1.3027,3334.1,3333.7,2.40961343]
[1737021417505,1.3027,3334.1,3334.0,0.59998]
[1737021418203,1.90266,3334.1,3334.0,0.59998]
[1737021418701,1.3027,3334.1,3334.0,0.59998]
[1737021420500,1.3027,3334.1,3333.7,2.40961343]
[1737021420705,1.90267,3334.1,3334.0,0.59998]
[1737021420906,1.3011,3334.2,3334.1,0.59996]
[1737021421705,1.90104,3334.2,3334.1,0.59996]
[1737021421908,2.80101,3334.2,3333.8,0.60001]
[1737021422110,2.80101,3334.2,3333.7,1.3306]
[1737021422111,0.60002,3333.8,3333.7,1.3306]
[1737021422313,0.60001,3333.9,3333.8,0.6]
[1737021422703,0.60002,3333.8,3333.7,0.60002]
[1737021424002,1.2808,3334.1,3333.5,1.254]
[1737021424307,1.2872,3333.7,3333.6,0.60005]
[1737021425009,1.88723,3333.7,3333.6,0.60005]
[1737021425208,1.2872,3333.7,3333.6,0.60005]
[1737021429015,1.2872,3333.7,3333.6,1.85405]
[1737021434118,1.2808,3334.1,3333.6,1.254]
[1737021434322,1.2808,3334.1,3334.0,0.59998]
[1737021435417,0.59999,3334.0,3333.9,0.59999]
[1737021437121,1.2808,3334.1,3333.6,2.33420356]
[1737021437322,0.59998,3334.0,3333.8,0.6]
[1737021437825,0.59998,3334.0,3333.6,2.33420356]
[1737021438018,0.59998,3334.0,3333.9,0.6]
[1737021438324,1.2808,3334.1,3333.6,2.33420356]
[1737021438918,0.59999,3334.0,3333.9,0.6]
[1737021439422,3.28441028,3335.0,3333.9,0.6]
[1737021439423,0.59987,3334.7,3334.5,0.59988]
[1737021439617,0.59987,3334.7,3334.0,1.49996]
[1737021439618,0.59987,3334.7,3334.3,1.254]
[1737021439824,0.59987,3334.7,3334.5,0.59989]
[1737021440425,3.2078,3334.8,3334.6,0.59987]
[1737021440426,3.80765,3334.8,3334.6,0.59987]
[1737021440613,0.59985,3334.7,3334.5,0.59988]
[1737021441219,0.59985,3334.7,3334.6,0.59987]
[1737021441519,3.80765,3334.8,3334.6,0.59987]
[1737021441925,3.80765,3334.8,3334.3,1.254]
[1737021442127,3.80765,3334.8,3334.7,0.59985]
[1737021442424,3.80765,3334.8,3334.6,0.59987]
[1737021443024,3.2078,3334.8,3334.3,1.254]
[1737021443216,3.2078,3334.8,3334.4,0.59991]
[1737021443217,0.59989,3334.5,3334.4,0.59991]
[1737021443928,0.59991,3334.4,3334.3,1.85392]
[1737021444125,1.53681,3334.4,3334.3,1.85392]
[1737021444817,0.59993,3334.3,3334.1,0.59995]
[1737021445015,2.55134,3334.3,3333.9,1.254]
[1737021445222,0.59995,3334.2,3334.1,0.59995]
[1737021445622,1.9514,3334.3,3333.9,1.254]
[1737021446025,0.59997,3334.1,3334.0,0.59997]
[1737021448628,0.59996,3334.2,3334.1,0.59996]
[1737021449022,1.9514,3334.3,3333.9,1.254]
[1737021449225,0.59998,3334.0,3333.9,1.254]
[1737021449425,0.59998,3334.0,3333.9,1.854]